[Event "Betsys MČR v online bleskovém šachu 2021"]
[Site "Chess.com"]
[Date "2021.04.17"]
[Round "7"]
[White "indebol"]
[Black "Hroch_Hippo"]
[Result "1/2-1/2"]
[WhiteElo "1534"]
[BlackElo "1098"]
[TimeControl "180+1"]
[EndTime "10:10:03 PDT"]
[Termination "Remíza opakováním pozice"]

1. e4 {[%clk 0:03:00]} 1... e5 {[%clk 0:02:59.9]} 2. Nf3 {[%clk 0:02:59.8]} 2...
Nc6 {[%clk 0:03:00.5]} 3. d4 {[%clk 0:02:59.4]} 3... exd4 {[%clk 0:02:58.9]} 4.
Nxd4 {[%clk 0:02:59.4]} 4... Bc5 {[%clk 0:02:56.5]} 5. Nxc6 {[%clk 0:02:59.1]}
5... bxc6 {[%clk 0:02:56.8]} 6. Bd3 {[%clk 0:02:56.3]} 6... Qf6 {[%clk
0:02:56.4]} 7. O-O {[%clk 0:02:55.5]} 7... Ne7 {[%clk 0:02:54.6]} 8. Nc3 {[%clk
0:02:52.9]} 8... d5 {[%clk 0:02:54.1]} 9. h3 {[%clk 0:02:37.2]} 9... dxe4 {[%clk
0:02:50.6]} 10. Nxe4 {[%clk 0:02:36.5]} 10... Qe5 {[%clk 0:02:45.7]} 11. Re1
{[%clk 0:02:27.2]} 11... Qd4 {[%clk 0:02:33.8]} 12. Nxc5 {[%clk 0:02:25.3]}
12... Qxc5 {[%clk 0:02:33.8]} 13. Be3 {[%clk 0:02:18.6]} 13... Qd6 {[%clk
0:02:25.2]} 14. Qh5 {[%clk 0:02:06.7]} 14... g6 {[%clk 0:02:17.3]} 15. Qf3
{[%clk 0:02:04]} 15... Be6 {[%clk 0:02:10.4]} 16. Rad1 {[%clk 0:01:56.8]} 16...
Qb4 {[%clk 0:01:57.5]} 17. b3 {[%clk 0:01:47.2]} 17... O-O {[%clk 0:01:39.4]}
18. Bg5 {[%clk 0:01:39.3]} 18... Rae8 {[%clk 0:01:30.2]} 19. Bxe7 {[%clk
0:01:36.5]} 19... Rxe7 {[%clk 0:01:29.6]} 20. Qxc6 {[%clk 0:01:34.3]} 20... Bd7
{[%clk 0:01:15.1]} 21. Qa6 {[%clk 0:01:24.5]} 21... Rxe1+ {[%clk 0:01:12.6]} 22.
Rxe1 {[%clk 0:01:22.9]} 22... Qxe1+ {[%clk 0:01:12.6]} 23. Kh2 {[%clk
0:01:23.3]} 23... Qe5+ {[%clk 0:01:11.3]} 24. Kh1 {[%clk 0:01:21.8]} 24... Qa1+
{[%clk 0:01:03.2]} 25. Kh2 {[%clk 0:01:21.3]} 25... Qe5+ {[%clk 0:01:02.3]} 26.
g3 {[%clk 0:01:17.9]} 26... Qd4 {[%clk 0:00:56.1]} 27. Kg1 {[%clk 0:01:15.3]}
27... Qa1+ {[%clk 0:00:53.7]} 28. Kh2 {[%clk 0:01:13]} 28... Qd4 {[%clk
0:00:53.6]} 29. Kg1 {[%clk 0:01:12.6]} 29... Qa1+ {[%clk 0:00:53.4]} 30. Kh2
{[%clk 0:01:10.8]} 30... Qd4 {[%clk 0:00:52.3]} 1/2-1/2

[Event "Betsys MČR v online bleskovém šachu 2021"]
[Site "Chess.com"]
[Date "2021.04.17"]
[Round "7"]
[White "matyson523"]
[Black "marecek1754"]
[Result "0-1"]
[WhiteElo "1803"]
[BlackElo "2172"]
[TimeControl "180+1"]
[EndTime "10:10:06 PDT"]
[Termination "Uživatel marecek1754 zvítězil matem"]

1. e4 {[%clk 0:03:00.9]} 1... e5 {[%clk 0:02:57.2]} 2. Nf3 {[%clk 0:03:00.8]}
2... Nc6 {[%clk 0:02:57.1]} 3. d4 {[%clk 0:03:00.8]} 3... exd4 {[%clk
0:02:57.1]} 4. Bc4 {[%clk 0:03:01]} 4... Bc5 {[%clk 0:02:56.7]} 5. c3 {[%clk
0:03:00.9]} 5... Nf6 {[%clk 0:02:56.2]} 6. O-O {[%clk 0:03:01]} 6... Nxe4 {[%clk
0:02:31.5]} 7. cxd4 {[%clk 0:02:57.9]} 7... d5 {[%clk 0:02:15.6]} 8. Re1 {[%clk
0:02:56.2]} 8... Be7 {[%clk 0:02:05.6]} 9. Nc3 {[%clk 0:02:53.1]} 9... Nxc3
{[%clk 0:02:01.7]} 10. bxc3 {[%clk 0:02:50.7]} 10... dxc4 {[%clk 0:02:02]} 11.
Bg5 {[%clk 0:02:37.7]} 11... f6 {[%clk 0:01:59.6]} 12. Bf4 {[%clk 0:02:36.5]}
12... O-O {[%clk 0:01:59.3]} 13. Qe2 {[%clk 0:02:34.4]} 13... Bd6 {[%clk
0:01:55.4]} 14. Qxc4+ {[%clk 0:02:33.6]} 14... Kh8 {[%clk 0:01:55]} 15. Be3
{[%clk 0:02:15.5]} 15... Bg4 {[%clk 0:01:51.9]} 16. d5 {[%clk 0:02:13.5]} 16...
Bxf3 {[%clk 0:01:51.2]} 17. gxf3 {[%clk 0:02:13.2]} 17... Ne5 {[%clk 0:01:51.3]}
18. Qe2 {[%clk 0:02:12.4]} 18... Qe8 {[%clk 0:01:50.1]} 19. f4 {[%clk 0:02:12]}
19... Qg6+ {[%clk 0:01:49.8]} 20. Kh1 {[%clk 0:02:11]} 20... Qe4+ {[%clk
0:01:49.8]} 21. Kg1 {[%clk 0:02:06.6]} 21... Nf3+ {[%clk 0:01:49.7]} 22. Kf1
{[%clk 0:02:05.9]} 22... Nxh2+ {[%clk 0:01:47]} 23. Kg1 {[%clk 0:02:06.2]} 23...
Nf3+ {[%clk 0:01:47.9]} 24. Kf1 {[%clk 0:02:05.5]} 24... f5 {[%clk 0:01:40.5]}
25. Red1 {[%clk 0:02:00.8]} 25... Rf6 {[%clk 0:01:34.9]} 26. Qd3 {[%clk
0:02:00.9]} 26... Bxf4 {[%clk 0:01:23.2]} 27. Qxe4 {[%clk 0:01:56.2]} 27... fxe4
{[%clk 0:01:23.3]} 28. Bxf4 {[%clk 0:01:55.8]} 28... Rxf4 {[%clk 0:01:23.3]} 29.
Ke2 {[%clk 0:01:56.1]} 29... Raf8 {[%clk 0:01:21.9]} 30. c4 {[%clk 0:01:52.5]}
30... Ne5 {[%clk 0:01:21]} 31. Ke3 {[%clk 0:01:51.9]} 31... Nxc4+ {[%clk
0:01:20.2]} 32. Kd4 {[%clk 0:01:51.6]} 32... e3+ {[%clk 0:01:19.2]} 33. Kd3
{[%clk 0:01:50.6]} 33... exf2 {[%clk 0:01:17.4]} 34. Rf1 {[%clk 0:01:50.5]}
34... Ne5+ {[%clk 0:01:17.4]} 35. Ke3 {[%clk 0:01:50.2]} 35... Ng4+ {[%clk
0:01:17.4]} 36. Ke2 {[%clk 0:01:49.4]} 36... Nh2 {[%clk 0:01:18.3]} 37. Rh1
{[%clk 0:01:49.4]} 37... f1=Q+ {[%clk 0:01:17.7]} 38. Raxf1 {[%clk 0:01:49.5]}
38... Rxf1 {[%clk 0:01:16.7]} 39. Rxh2 {[%clk 0:01:49.8]} 39... R1f2+ {[%clk
0:01:17.1]} 40. Rxf2 {[%clk 0:01:49.3]} 40... Rxf2+ {[%clk 0:01:18]} 41. Kxf2
{[%clk 0:01:49.8]} 41... Kg8 {[%clk 0:01:18.7]} 42. Ke3 {[%clk 0:01:50.1]} 42...
Kf8 {[%clk 0:01:19.2]} 43. Kd4 {[%clk 0:01:50.1]} 43... Ke7 {[%clk 0:01:19.7]}
44. Ke5 {[%clk 0:01:50.4]} 44... h5 {[%clk 0:01:19.4]} 45. Kf5 {[%clk 0:01:50]}
45... Kd6 {[%clk 0:01:19.8]} 46. Kg5 {[%clk 0:01:50.2]} 46... Kxd5 {[%clk
0:01:20.2]} 47. Kxh5 {[%clk 0:01:50.1]} 47... c5 {[%clk 0:01:18.3]} 48. Kg6
{[%clk 0:01:50.4]} 48... c4 {[%clk 0:01:18.9]} 49. Kxg7 {[%clk 0:01:50.9]} 49...
c3 {[%clk 0:01:19.8]} 50. Kf7 {[%clk 0:01:51]} 50... c2 {[%clk 0:01:20.4]} 51.
a4 {[%clk 0:01:51.3]} 51... c1=Q {[%clk 0:01:21.3]} 52. a5 {[%clk 0:01:51.9]}
52... Qf4+ {[%clk 0:01:21.1]} 53. Ke7 {[%clk 0:01:51.8]} 53... Qh6 {[%clk
0:01:20.3]} 54. Kd7 {[%clk 0:01:51.9]} 54... Qg7+ {[%clk 0:01:19.8]} 55. Kc8
{[%clk 0:01:52.1]} 55... Kd6 {[%clk 0:01:20.5]} 56. Kb8 {[%clk 0:01:51.3]} 56...
Qc7+ {[%clk 0:01:16.8]} 57. Kxa7 {[%clk 0:01:51.3]} 57... Qxa5+ {[%clk
0:01:16.2]} 58. Kb8 {[%clk 0:01:50.7]} 58... b5 {[%clk 0:01:14.6]} 59. Kc8
{[%clk 0:01:50.1]} 59... Qc7# {[%clk 0:01:14.1]} 0-1

[Event "Betsys MČR v online bleskovém šachu 2021"]
[Site "Chess.com"]
[Date "2021.04.17"]
[Round "7"]
[White "penguinorodriguez"]
[Black "xnepom"]
[Result "1-0"]
[WhiteElo "2541"]
[BlackElo "2249"]
[TimeControl "180+1"]
[EndTime "10:10:07 PDT"]
[Termination "Uživatel penguinorodriguez zvítězil po vzdání soupeře"]

1. d4 {[%clk 0:02:52.1]} 1... d5 {[%clk 0:02:59.2]} 2. c4 {[%clk 0:02:49.9]}
2... e6 {[%clk 0:02:59.1]} 3. Nf3 {[%clk 0:02:49.9]} 3... c5 {[%clk 0:02:58.9]}
4. cxd5 {[%clk 0:02:49.5]} 4... exd5 {[%clk 0:02:59.6]} 5. Nc3 {[%clk
0:02:50.4]} 5... Nc6 {[%clk 0:02:59.6]} 6. dxc5 {[%clk 0:02:47]} 6... d4 {[%clk
0:02:59.6]} 7. Na4 {[%clk 0:02:47.1]} 7... Bxc5 {[%clk 0:02:52.8]} 8. Nxc5
{[%clk 0:02:47.1]} 8... Qa5+ {[%clk 0:02:53.4]} 9. Bd2 {[%clk 0:02:47.4]} 9...
Qxc5 {[%clk 0:02:54.1]} 10. b4 {[%clk 0:02:42.1]} 10... Nxb4 {[%clk 0:02:44.3]}
11. Rc1 {[%clk 0:02:41.9]} 11... Qb6 {[%clk 0:02:42.4]} 12. e3 {[%clk
0:02:38.4]} 12... Nf6 {[%clk 0:02:17.1]} 13. Rb1 {[%clk 0:02:13.2]} 13... dxe3
{[%clk 0:01:42.2]} 14. Bxe3 {[%clk 0:02:03.9]} 14... Qa5 {[%clk 0:01:16.1]} 15.
Bd2 {[%clk 0:02:04]} 15... Nfd5 {[%clk 0:01:02.1]} 16. Bc4 {[%clk 0:01:47.8]}
16... Bf5 {[%clk 0:00:51.3]} 17. Rb3 {[%clk 0:01:22.9]} 17... O-O-O {[%clk
0:00:24.2]} 18. O-O {[%clk 0:01:18]} 18... Bc2 {[%clk 0:00:21.1]} 19. Qxc2
{[%clk 0:01:13.7]} 1-0

[Event "Betsys MČR v online bleskovém šachu 2021"]
[Site "Chess.com"]
[Date "2021.04.17"]
[Round "7"]
[White "iDarkTraveler"]
[Black "DavidZidlicky"]
[Result "1-0"]
[WhiteElo "1961"]
[BlackElo "1685"]
[TimeControl "180+1"]
[EndTime "10:10:07 PDT"]
[Termination "Uživatel iDarkTraveler zvítězil po vzdání soupeře"]

1. e4 {[%clk 0:03:00.9]} 1... c5 {[%clk 0:02:59.2]} 2. Nf3 {[%clk 0:03:00.2]}
2... Nc6 {[%clk 0:02:58.9]} 3. Nc3 {[%clk 0:03:01.1]} 3... d6 {[%clk 0:02:58.4]}
4. Bc4 {[%clk 0:03:01.1]} 4... h6 {[%clk 0:02:57.2]} 5. O-O {[%clk 0:03:00.7]}
5... Bg4 {[%clk 0:02:56.9]} 6. h3 {[%clk 0:03:00.6]} 6... Bxf3 {[%clk
0:02:43.1]} 7. Qxf3 {[%clk 0:03:00.2]} 7... Nf6 {[%clk 0:02:38.8]} 8. b3 {[%clk
0:02:47.5]} 8... Ne5 {[%clk 0:02:36]} 9. Qe2 {[%clk 0:02:45.5]} 9... Nxc4 {[%clk
0:02:25.8]} 10. bxc4 {[%clk 0:02:46.4]} 10... g5 {[%clk 0:02:24.9]} 11. d3
{[%clk 0:02:45.4]} 11... Bg7 {[%clk 0:02:24.7]} 12. Rb1 {[%clk 0:02:44.3]} 12...
b6 {[%clk 0:02:19.1]} 13. Nd5 {[%clk 0:02:42.9]} 13... Nxd5 {[%clk 0:02:16.7]}
14. exd5 {[%clk 0:02:42.7]} 14... O-O {[%clk 0:02:16.5]} 15. Qh5 {[%clk
0:02:31]} 15... e6 {[%clk 0:02:10]} 16. h4 {[%clk 0:02:23.6]} 16... exd5 {[%clk
0:01:53.1]} 17. hxg5 {[%clk 0:02:22]} 17... dxc4 {[%clk 0:01:44.4]} 18. gxh6
{[%clk 0:02:21.3]} 18... Be5 {[%clk 0:01:32.7]} 19. h7+ {[%clk 0:01:31.9]} 19...
Kh8 {[%clk 0:01:29.2]} 20. Bh6 {[%clk 0:01:32]} 20... Bg7 {[%clk 0:01:08.2]} 21.
Bxg7+ {[%clk 0:01:30.1]} 21... Kxg7 {[%clk 0:01:05.4]} 22. dxc4 {[%clk
0:01:28.8]} 22... Rh8 {[%clk 0:00:56.2]} 23. Rb3 {[%clk 0:01:28.5]} 23... Rxh7
{[%clk 0:00:51.5]} 24. Rg3+ {[%clk 0:01:27.4]} 24... Kh8 {[%clk 0:00:46.6]} 25.
Qd5 {[%clk 0:01:09.4]} 25... Qh4 {[%clk 0:00:38.9]} 26. Qxa8+ {[%clk 0:01:08.6]}
1-0

[Event "Betsys MČR v online bleskovém šachu 2021"]
[Site "Chess.com"]
[Date "2021.04.17"]
[Round "7"]
[White "Pokemonchess"]
[Black "Tobish"]
[Result "1-0"]
[WhiteElo "1944"]
[BlackElo "1684"]
[TimeControl "180+1"]
[EndTime "10:10:08 PDT"]
[Termination "Uživatel Pokemonchess zvítězil po vzdání soupeře"]

1. e4 {[%clk 0:02:58.4]} 1... c5 {[%clk 0:03:00]} 2. Nf3 {[%clk 0:02:57.6]} 2...
Nc6 {[%clk 0:03:00]} 3. d4 {[%clk 0:02:56.6]} 3... cxd4 {[%clk 0:02:58.8]} 4.
Nxd4 {[%clk 0:02:57.5]} 4... Nf6 {[%clk 0:02:57.4]} 5. Nc3 {[%clk 0:02:56.7]}
5... g6 {[%clk 0:02:55.2]} 6. Bc4 {[%clk 0:02:55.1]} 6... Bg7 {[%clk 0:02:55.3]}
7. Bb3 {[%clk 0:02:54.9]} 7... d6 {[%clk 0:02:54.8]} 8. O-O {[%clk 0:02:49.9]}
8... O-O {[%clk 0:02:52]} 9. f3 {[%clk 0:02:46.8]} 9... Nxe4 {[%clk 0:02:38.8]}
10. Nxe4 {[%clk 0:02:30.9]} 10... Bxd4+ {[%clk 0:02:29.7]} 11. Kh1 {[%clk
0:02:30.3]} 11... Bg7 {[%clk 0:02:26.8]} 12. c3 {[%clk 0:02:28.2]} 12... Bd7
{[%clk 0:02:15.6]} 13. Be3 {[%clk 0:02:18.9]} 13... Kh8 {[%clk 0:02:03.5]} 14.
Ng5 {[%clk 0:02:12.4]} 14... Kg8 {[%clk 0:01:54.5]} 15. Qd5 {[%clk 0:02:04.9]}
15... Ne5 {[%clk 0:01:37.8]} 16. f4 {[%clk 0:01:55.4]} 16... Bc6 {[%clk
0:01:37.3]} 17. Qd2 {[%clk 0:01:54.6]} 17... Nd7 {[%clk 0:01:25.5]} 18. f5
{[%clk 0:01:52]} 18... Ne5 {[%clk 0:01:17.1]} 19. fxg6 {[%clk 0:01:48.5]} 19...
hxg6 {[%clk 0:01:16.5]} 20. Qf2 {[%clk 0:01:39.8]} 20... Ng4 {[%clk 0:00:39.1]}
21. Bxf7+ {[%clk 0:01:31.8]} 21... Rxf7 {[%clk 0:00:29.5]} 22. Qxf7+ {[%clk
0:01:29.9]} 22... Kh8 {[%clk 0:00:29.6]} 23. Qxg6 {[%clk 0:01:26.2]} 23... Qg8
{[%clk 0:00:20.4]} 24. Nf7+ {[%clk 0:01:19.7]} 1-0

[Event "Betsys MČR v online bleskovém šachu 2021"]
[Site "Chess.com"]
[Date "2021.04.17"]
[Round "7"]
[White "doktorovak"]
[Black "Jindrich4321"]
[Result "0-1"]
[WhiteElo "1665"]
[BlackElo "1933"]
[TimeControl "180+1"]
[EndTime "10:10:11 PDT"]
[Termination "Uživatel Jindrich4321 zvítězil po vzdání soupeře"]

1. e4 {[%clk 0:03:00.9]} 1... e6 {[%clk 0:02:58.4]} 2. Nf3 {[%clk 0:03:00.6]}
2... d5 {[%clk 0:02:57.9]} 3. exd5 {[%clk 0:02:59.9]} 3... exd5 {[%clk
0:02:56.8]} 4. d4 {[%clk 0:02:59.9]} 4... Bd6 {[%clk 0:02:57.1]} 5. Bd3 {[%clk
0:02:59.3]} 5... Ne7 {[%clk 0:02:57.2]} 6. O-O {[%clk 0:02:54.8]} 6... Bg4
{[%clk 0:02:57.3]} 7. h3 {[%clk 0:02:53.9]} 7... Bh5 {[%clk 0:02:56.8]} 8. c3
{[%clk 0:02:53.6]} 8... Nbc6 {[%clk 0:02:55.3]} 9. Re1 {[%clk 0:02:53.3]} 9...
Qd7 {[%clk 0:02:54]} 10. Bg5 {[%clk 0:02:52.6]} 10... f6 {[%clk 0:02:50.4]} 11.
Bh4 {[%clk 0:02:52.2]} 11... O-O {[%clk 0:02:49.2]} 12. Bg3 {[%clk 0:02:51.3]}
12... Bxg3 {[%clk 0:02:44.2]} 13. fxg3 {[%clk 0:02:51.1]} 13... Qd6 {[%clk
0:02:42.5]} 14. g4 {[%clk 0:02:49.7]} 14... Bg6 {[%clk 0:02:41.4]} 15. Qc2
{[%clk 0:02:48.1]} 15... Rae8 {[%clk 0:02:32.8]} 16. Nbd2 {[%clk 0:02:47.1]}
16... f5 {[%clk 0:02:24.2]} 17. g5 {[%clk 0:02:41.8]} 17... Qf4 {[%clk 0:02:16]}
18. Rf1 {[%clk 0:02:30.2]} 18... Qg3 {[%clk 0:02:06.9]} 19. Rae1 {[%clk
0:02:23.5]} 19... f4 {[%clk 0:02:03.4]} 20. Ne5 {[%clk 0:02:14.9]} 20... Nxe5
{[%clk 0:01:50.4]} 21. Rxe5 {[%clk 0:02:09.9]} 21... Bxd3 {[%clk 0:01:40.3]} 22.
Qd1 {[%clk 0:01:52.9]} 22... Bxf1 {[%clk 0:01:10.5]} 23. Nxf1 {[%clk 0:01:47.8]}
23... Qh4 {[%clk 0:01:09.9]} 24. Qf3 {[%clk 0:01:34.1]} 24... c6 {[%clk
0:00:55.8]} 25. Nh2 {[%clk 0:01:18.3]} 25... Ng6 {[%clk 0:00:53.5]} 26. Rxe8
{[%clk 0:01:01.4]} 26... Rxe8 {[%clk 0:00:53.2]} 27. Ng4 {[%clk 0:00:59.3]}
27... Re1+ {[%clk 0:00:51.3]} 28. Kh2 {[%clk 0:00:58.9]} 28... Qg3+ {[%clk
0:00:47.9]} 0-1

[Event "Betsys MČR v online bleskovém šachu 2021"]
[Site "Chess.com"]
[Date "2021.04.17"]
[Round "7"]
[White "sharpi5135"]
[Black "Anyna"]
[Result "0-1"]
[WhiteElo "748"]
[BlackElo "800"]
[TimeControl "180+1"]
[EndTime "10:10:12 PDT"]
[Termination "Uživatel Anyna zvítězil matem"]

1. c4 {[%clk 0:02:57]} 1... Nf6 {[%clk 0:02:58.7]} 2. d3 {[%clk 0:02:55.6]} 2...
g6 {[%clk 0:02:59.6]} 3. g3 {[%clk 0:02:52.2]} 3... Bg7 {[%clk 0:03:00]} 4. Bg2
{[%clk 0:02:51.9]} 4... O-O {[%clk 0:03:00.3]} 5. Nf3 {[%clk 0:02:50]} 5... Nc6
{[%clk 0:03:00.5]} 6. Ng5 {[%clk 0:02:44]} 6... Re8 {[%clk 0:02:59.6]} 7. Nxh7
{[%clk 0:02:40.1]} 7... Kxh7 {[%clk 0:02:57.3]} 8. Bxc6 {[%clk 0:02:32.4]} 8...
dxc6 {[%clk 0:02:55.3]} 9. Bg5 {[%clk 0:02:18]} 9... Bh3 {[%clk 0:02:47.9]} 10.
Bxf6 {[%clk 0:02:07.3]} 10... Bxf6 {[%clk 0:02:44.8]} 11. Nc3 {[%clk 0:02:05.3]}
11... e5 {[%clk 0:02:31]} 12. Ne4 {[%clk 0:02:04.2]} 12... Bg2 {[%clk
0:02:15.7]} 13. Rg1 {[%clk 0:01:59.4]} 13... Bxe4 {[%clk 0:02:15]} 14. dxe4
{[%clk 0:01:58.1]} 14... Qxd1+ {[%clk 0:02:14.6]} 15. Rxd1 {[%clk 0:01:56.9]}
15... b5 {[%clk 0:02:05.4]} 16. b3 {[%clk 0:01:54.9]} 16... bxc4 {[%clk
0:02:03.6]} 17. Rd7 {[%clk 0:01:54]} 17... Re7 {[%clk 0:01:56.9]} 18. Rxe7
{[%clk 0:01:49.3]} 18... Bxe7 {[%clk 0:01:54.5]} 19. bxc4 {[%clk 0:01:48.9]}
19... Bb4+ {[%clk 0:01:51.7]} 20. Kf1 {[%clk 0:01:44.5]} 20... Rd8 {[%clk
0:01:52]} 21. Kg2 {[%clk 0:01:43.6]} 21... Rd4 {[%clk 0:01:47.2]} 22. Rb1 {[%clk
0:01:41.6]} 22... c5 {[%clk 0:01:43.8]} 23. e3 {[%clk 0:01:36.7]} 23... Rxc4
{[%clk 0:01:41.1]} 24. Kf3 {[%clk 0:01:34]} 24... Rc2 {[%clk 0:01:25.9]} 25. a3
{[%clk 0:01:26.9]} 25... Bxa3 {[%clk 0:01:22.5]} 26. Rb7 {[%clk 0:01:25.7]}
26... a5 {[%clk 0:01:19.1]} 27. Rxc7 {[%clk 0:01:24.7]} 27... Kg7 {[%clk
0:01:16.1]} 28. h4 {[%clk 0:01:19.8]} 28... Bb4 {[%clk 0:01:16]} 29. Kg4 {[%clk
0:01:09.6]} 29... a4 {[%clk 0:01:16.9]} 30. Ra7 {[%clk 0:00:58]} 30... a3 {[%clk
0:01:16.5]} 31. Kg5 {[%clk 0:00:50.7]} 31... a2 {[%clk 0:01:15.6]} 32. f4 {[%clk
0:00:47]} 32... exf4 {[%clk 0:01:14.1]} 33. gxf4 {[%clk 0:00:43.5]} 33... Rg2#
{[%clk 0:01:12.3]} 0-1

[Event "Betsys MČR v online bleskovém šachu 2021"]
[Site "Chess.com"]
[Date "2021.04.17"]
[Round "7"]
[White "czechfant94"]
[Black "Maty_2010"]
[Result "1-0"]
[WhiteElo "1596"]
[BlackElo "990"]
[TimeControl "180+1"]
[EndTime "10:10:14 PDT"]
[Termination "Uživatel czechfant94 zvítězil matem"]

1. e4 {[%clk 0:02:49.4]} 1... e5 {[%clk 0:02:59.7]} 2. Nf3 {[%clk 0:02:48.2]}
2... Nf6 {[%clk 0:02:55.8]} 3. Nc3 {[%clk 0:02:47.5]} 3... Bc5 {[%clk
0:02:52.2]} 4. Bc4 {[%clk 0:02:46.5]} 4... Nc6 {[%clk 0:02:50.4]} 5. O-O {[%clk
0:02:45.4]} 5... O-O {[%clk 0:02:45]} 6. d3 {[%clk 0:02:45.5]} 6... d6 {[%clk
0:02:40.6]} 7. Bg5 {[%clk 0:02:44.7]} 7... h6 {[%clk 0:02:40]} 8. Bh4 {[%clk
0:02:44.6]} 8... Bg4 {[%clk 0:02:36.8]} 9. h3 {[%clk 0:02:43.4]} 9... Bh5 {[%clk
0:02:34.7]} 10. Nd5 {[%clk 0:02:43.3]} 10... Nd4 {[%clk 0:02:26.3]} 11. Bxf6
{[%clk 0:02:36.1]} 11... gxf6 {[%clk 0:02:23.5]} 12. g4 {[%clk 0:02:30.9]} 12...
Bg6 {[%clk 0:02:19.6]} 13. Nxd4 {[%clk 0:02:30.4]} 13... Bxd4 {[%clk 0:02:17.8]}
14. c3 {[%clk 0:02:30.2]} 14... Bc5 {[%clk 0:02:12.1]} 15. Kh2 {[%clk
0:02:26.4]} 15... c6 {[%clk 0:02:10.7]} 16. Nb4 {[%clk 0:02:23.6]} 16... d5
{[%clk 0:02:08.6]} 17. exd5 {[%clk 0:02:12.3]} 17... cxd5 {[%clk 0:02:08]} 18.
Bxd5 {[%clk 0:02:11.2]} 18... e4 {[%clk 0:02:06.8]} 19. Bxe4 {[%clk 0:02:11]}
19... Qc7+ {[%clk 0:02:06.4]} 20. Kh1 {[%clk 0:02:06.9]} 20... Rad8 {[%clk
0:01:45.8]} 21. Nd5 {[%clk 0:02:05.1]} 21... Qc6 {[%clk 0:01:43.8]} 22. c4
{[%clk 0:02:01.5]} 22... b5 {[%clk 0:01:30.3]} 23. b3 {[%clk 0:02:00.4]} 23...
bxc4 {[%clk 0:01:28.9]} 24. bxc4 {[%clk 0:01:59.2]} 24... Rfe8 {[%clk
0:01:20.4]} 25. Qf3 {[%clk 0:01:55.5]} 25... Bd4 {[%clk 0:01:13.2]} 26. Rad1
{[%clk 0:01:40.9]} 26... h5 {[%clk 0:00:50.5]} 27. Bxg6 {[%clk 0:01:36.6]} 27...
fxg6 {[%clk 0:00:49.9]} 28. gxh5 {[%clk 0:01:36.9]} 28... gxh5 {[%clk
0:00:49.9]} 29. Qxh5 {[%clk 0:01:34.9]} 29... a5 {[%clk 0:00:37]} 30. Rg1+
{[%clk 0:01:33.5]} 30... Kf8 {[%clk 0:00:34.2]} 31. Qg6 {[%clk 0:01:25.7]} 31...
Rd7 {[%clk 0:00:25.3]} 32. Qg8# {[%clk 0:01:24.9]} 1-0

[Event "Betsys MČR v online bleskovém šachu 2021"]
[Site "Chess.com"]
[Date "2021.04.17"]
[Round "7"]
[White "Toman_26"]
[Black "tkokosek007"]
[Result "0-1"]
[WhiteElo "999"]
[BlackElo "1383"]
[TimeControl "180+1"]
[EndTime "10:10:15 PDT"]
[Termination "Uživatel tkokosek007 zvítězil po vzdání soupeře"]

1. e4 {[%clk 0:03:00.9]} 1... Nf6 {[%clk 0:02:58.7]} 2. e5 {[%clk 0:03:00.1]}
2... Nd5 {[%clk 0:02:57.9]} 3. c4 {[%clk 0:03:00.4]} 3... Nb6 {[%clk 0:02:57.7]}
4. d4 {[%clk 0:03:00.4]} 4... d6 {[%clk 0:02:57.3]} 5. exd6 {[%clk 0:02:58.2]}
5... cxd6 {[%clk 0:02:50.3]} 6. Nc3 {[%clk 0:02:57.3]} 6... g6 {[%clk
0:02:48.2]} 7. Nf3 {[%clk 0:02:56.8]} 7... Bg7 {[%clk 0:02:44.1]} 8. Be2 {[%clk
0:02:55.7]} 8... O-O {[%clk 0:02:39.8]} 9. O-O {[%clk 0:02:56]} 9... Bf5 {[%clk
0:02:37.7]} 10. b3 {[%clk 0:02:54.1]} 10... Nc6 {[%clk 0:02:36.4]} 11. Bb2
{[%clk 0:02:50.9]} 11... d5 {[%clk 0:02:23.9]} 12. Re1 {[%clk 0:02:37.5]} 12...
dxc4 {[%clk 0:02:07.8]} 13. Bxc4 {[%clk 0:02:31]} 13... Nxc4 {[%clk 0:02:03.7]}
14. bxc4 {[%clk 0:02:29.4]} 14... e6 {[%clk 0:01:57.9]} 15. d5 {[%clk
0:02:22.4]} 15... exd5 {[%clk 0:01:49.6]} 16. cxd5 {[%clk 0:02:21.3]} 16... Nb4
{[%clk 0:01:43.3]} 17. a3 {[%clk 0:02:08.5]} 17... Nd3 {[%clk 0:01:40]} 18. Qd2
{[%clk 0:01:46.4]} 18... Nxe1 {[%clk 0:01:34]} 19. Rxe1 {[%clk 0:01:47.3]} 19...
Rc8 {[%clk 0:01:28.3]} 20. Nb5 {[%clk 0:01:44]} 20... Rc2 {[%clk 0:01:19.7]} 21.
Qb4 {[%clk 0:01:43.4]} 21... Rxb2 {[%clk 0:01:11.8]} 22. Qc5 {[%clk 0:01:33.3]}
22... Qb6 {[%clk 0:01:00.5]} 23. Qxb6 {[%clk 0:01:30.3]} 23... axb6 {[%clk
0:01:00.5]} 24. a4 {[%clk 0:01:26.7]} 24... Rb1 {[%clk 0:00:58.4]} 25. Rxb1
{[%clk 0:01:24]} 25... Bxb1 {[%clk 0:00:57.9]} 26. h3 {[%clk 0:01:23.6]} 26...
Be4 {[%clk 0:00:57.4]} 27. d6 {[%clk 0:01:21.3]} 27... Bxf3 {[%clk 0:00:56.3]}
28. gxf3 {[%clk 0:01:20.7]} 28... Rd8 {[%clk 0:00:56.2]} 29. f4 {[%clk
0:01:16.6]} 29... g5 {[%clk 0:00:54.4]} 30. fxg5 {[%clk 0:01:14]} 30... Be5
{[%clk 0:00:49.7]} 31. h4 {[%clk 0:01:08.8]} 31... Bxd6 {[%clk 0:00:49.4]} 32.
Nxd6 {[%clk 0:01:09.1]} 32... Rxd6 {[%clk 0:00:48.9]} 33. Kg2 {[%clk 0:01:09]}
33... Rd4 {[%clk 0:00:48.9]} 0-1